fUST/lending_fUST_20260114
["ID","MTS","AMOUNT","RATE_DAILY","PERIOD"]
[401865002,1768390248345,-160.35823449,0.00021077,2]
[401865004,1768390248354,-1077.0,0.00021127,2]
[401865006,1768390248364,-174.61919141,0.00021206,2]
[401865008,1768390248373,-2312.83697232,0.00021206,2]
[401865011,1768390248390,-478.75725327,0.00021206,2]
[401865013,1768390248404,-311.85701,0.00021206,2]
[401865015,1768390248418,-31110.0,0.00021206,2]
[401865017,1768390248429,-4427.0,0.00021234,2]
[401865019,1768390248441,-22470.88731642,0.00021366,2]
[401865022,1768390248452,-550.0,0.0002137,2]
[401865024,1768390248462,-7500.0,0.0002137,2]
[401865026,1768390248473,-1040.0176033,0.000215,2]
[401865028,1768390248483,-12864.48059022,0.000215,2]
[401865030,1768390248493,-1145.51309932,0.00021523,15]
[401865032,1768390248505,-2000.0,0.00021589,7]
[401865034,1768390248514,-3544.632862,0.00021735,7]
[401865036,1768390248524,-181.08010149,0.00021754,2]
[401865038,1768390248534,-2398.4119403,0.00021754,2]
[401865040,1768390248544,-496.47127164,0.00021754,2]
[401865042,1768390248555,-323.39571937,0.00021754,2]
[401865044,1768390248566,-32261.07,0.00021754,2]
[401865047,1768390248578,-1000.0,0.00021893,10]
[401865049,1768390248588,-1000.0,0.00021893,10]
[401865051,1768390248599,-579.0,0.00021893,10]
[401865053,1768390248609,-1370.22540215,0.00021906,2]
[401865055,1768390248619,-712.833248,0.00021918,2]
[401865057,1768390248629,-151.0,0.00021918,2]
[401865059,1768390248639,-151.0,0.00021918,2]
[401865061,1768390248649,-151.0,0.00021918,2]
[401865064,1768390248659,-169.388304,0.00021918,2]
[401865066,1768390248669,-151.0,0.00021918,2]
[401865068,1768390248679,-151.0,0.00021918,2]
[401865070,1768390248688,-151.0,0.00021918,2]
[401865072,1768390248699,-151.0,0.00021918,2]
[401865074,1768390248709,-171.876779,0.00021918,2]
[401865076,1768390248719,-151.0,0.00021918,2]
[401865078,1768390248731,-151.0,0.00021918,2]
[401865080,1768390248744,-1838.09205,0.00021918,2]
[401865082,1768390248754,-1838.09205,0.00021918,2]
[401865084,1768390248763,-151.0,0.00021918,2]
[401865087,1768390248774,-1838.09205,0.00021918,2]
[401865089,1768390248783,-1838.09205,0.00021918,2]
[401865091,1768390248792,-151.0,0.00021918,2]
[401865093,1768390248802,-151.0,0.00021918,2]
[401865095,1768390248812,-151.0,0.00021918,2]
[401865097,1768390248821,-671.695781,0.00021918,2]
[401865099,1768390248831,-671.695781,0.00021918,2]
[401865101,1768390248841,-671.695781,0.00021918,2]
[401865103,1768390248850,-671.695781,0.00021918,2]
[401865105,1768390248861,-151.0,0.00021918,2]
[401865107,1768390248870,-151.0,0.00021918,2]
[401865109,1768390248881,-151.0,0.00021918,2]
[401865111,1768390248890,-151.0,0.00021918,2]
[401865113,1768390248900,-151.0,0.00021918,2]
[401865115,1768390248910,-151.0,0.00021918,2]
[401865117,1768390248919,-151.0,0.00021918,2]
[401865119,1768390248930,-151.0,0.00021918,2]
[401865121,1768390248940,-151.0,0.00021918,2]
[401865123,1768390248950,-151.0,0.00021918,2]
[401865126,1768390248960,-1200.0,0.00021918,2]
[401865128,1768390248969,-650.0,0.00021918,2]
[401865130,1768390248979,-8000.0,0.00021918,2]
[401865132,1768390248989,-568.82796279,0.0002196,10]
[401865134,1768390248999,-2222.24,0.00022,7]
[401865136,1768390249010,-151.0,0.00022128,2]
[401865138,1768390249019,-275.55471384,0.00022128,2]
[401865140,1768390249028,-151.0,0.00022128,2]
[401865142,1768390249038,-151.0,0.00022128,2]
[401865144,1768390249047,-151.0,0.00022128,2]
[401865146,1768390249056,-151.0,0.00022128,2]
[401865148,1768390249065,-151.0,0.00022128,2]
[401865150,1768390249075,-151.0,0.00022128,2]
[401865152,1768390249085,-230.012904,0.00022128,2]
[401865154,1768390249094,-151.0,0.00022128,2]
[401865156,1768390249103,-151.0,0.00022128,2]
[401865158,1768390249113,-244.488138,0.00022128,2]
[401865160,1768390249122,-244.488138,0.00022128,2]
[401865162,1768390249132,-244.488138,0.00022128,2]
[401865164,1768390249141,-244.488138,0.00022128,2]
[401865166,1768390249151,-174.038823,0.00022128,2]
[401865168,1768390249160,-174.038823,0.00022128,2]
[401865170,1768390249170,-174.038823,0.00022128,2]
[401865172,1768390249179,-174.038823,0.00022128,2]
[401865174,1768390249189,-151.0,0.00022128,2]
[401865176,1768390249199,-240.755518,0.00022128,2]
[401865179,1768390249209,-406.316369,0.00022128,2]
[401865180,1768390249219,-406.316369,0.00022128,2]
[401865182,1768390249228,-237.361203,0.00022128,2]
[401865185,1768390249243,-406.316369,0.00022128,2]
[401865187,1768390249253,-237.361203,0.00022128,2]
[401865189,1768390249263,-406.316369,0.00022128,2]
[401865191,1768390249274,-237.361203,0.00022128,2]
[401865193,1768390249284,-237.361203,0.00022128,2]
[401865195,1768390249294,-160.471335,0.00022128,2]
[401865197,1768390249304,-151.0,0.00022128,2]
[401865199,1768390249315,-171.320259,0.00022128,2]
[401865201,1768390249325,-187.78006525,0.00022302,2]
[401865203,1768390249335,-2487.15318209,0.00022302,2]
[401865205,1768390249345,-514.84070869,0.00022302,2]
[401865208,1768390249357,-335.36136099,0.00022302,2]
[401865210,1768390249367,-300.0,0.00022466,2]
[401865212,1768390249376,-200.0,0.00022466,2]
[401865214,1768390249386,-750.0,0.00022466,2]
[401865216,1768390249396,-2364.52541442,0.00022466,2]
[401865218,1768390249406,-1033.75044732,0.000225,2]
[401865220,1768390249415,-12705.37423421,0.00022537,2]
[401865222,1768390249425,-1077.0,0.00022548,2]
[401865224,1768390249438,-1145.51309932,0.00022551,16]
[401865226,1768390249447,-167.77,0.000227,7]
[401865228,1768390249458,-194.72792766,0.0002285,2]
[401865230,1768390249467,-2579.17784983,0.0002285,2]
[401865232,1768390249479,-533.88981491,0.0002285,2]
[401865234,1768390249488,-347.76973134,0.0002285,2]
[401865236,1768390249497,-2000.0,0.00022904,7]
[401865238,1768390249507,-1041.66666667,0.00023,3]
[401865240,1768390249518,-450.0,0.00023014,2]
[401865242,1768390249527,-1400.0,0.00023014,2]
[401865244,1768390249537,-850.0,0.00023014,2]
[401865246,1768390249548,-250.0,0.00023014,2]
[401865248,1768390249558,-500.0,0.000231,7]
[401865250,1768390249567,-316.46,0.000231,7]
[401865252,1768390249577,-316.42,0.000231,7]
[401865254,1768390249587,-5432.92,0.000231,14]
[401865256,1768390249597,-40340.44,0.000231,2]
[401865258,1768390249606,-182.95072115,0.0002315,2]
[401865260,1768390249615,-500.0,0.0002322,2]
[401865262,1768390249625,-168.0,0.00023231,2]
[401865264,1768390249634,-168.0,0.00023236,2]
[401865266,1768390249644,-1700.0,0.00023246,2]
[401865268,1768390249654,-500.0,0.00023314,2]
[401865270,1768390249663,-168.0,0.00023341,2]
[401865272,1768390249673,-6198.0,0.00023357,2]
[401865274,1768390249683,-201.93286099,0.00023398,2]
[401865276,1768390249693,-2674.60743027,0.00023398,2]
[401865287,1768390249703,-553.64373807,0.00023398,2]
[401865289,1768390249808,-360.6372114,0.00023398,2]
[401865291,1768390249817,-500.0,0.000234,2]
[401865293,1768390249827,-1700.0,0.00023434,2]
[401865295,1768390249837,-150.25,0.0002345,2]
[401865297,1768390249846,-168.0,0.00023469,2]
[401865299,1768390249855,-500.0,0.00023505,2]
[401865301,1768390249864,-1000.0,0.00023525,2]
[401865303,1768390249872,-168.0,0.00023533,2]
[401865305,1768390249882,-1700.0,0.0002354,2]
[401865307,1768390249891,-600.0,0.00023562,2]
[401865309,1768390249900,-950.0,0.00023562,2]
[401865311,1768390249911,-210.92385342,0.00023562,2]
[401865313,1768390249920,-1145.51309932,0.00023579,18]
[401865314,1768390249929,-151.0,0.00023626,2]
[401865316,1768390249938,-216.477356,0.00023626,2]
[401865318,1768390249948,-151.0,0.00023626,2]
[401865320,1768390249956,-151.0,0.00023626,2]
[401865322,1768390249966,-428.566923,0.00023626,2]
[401865324,1768390249975,-151.0,0.00023626,2]
[401865326,1768390249983,-216.477356,0.00023626,2]
[401865328,1768390249993,-151.0,0.00023626,2]
[401865330,1768390250002,-428.566923,0.00023626,2]
[401865332,1768390250011,-216.477356,0.00023626,2]
[401865334,1768390250020,-151.0,0.00023626,2]
[401865336,1768390250029,-428.566923,0.00023626,2]
[401865338,1768390250038,-216.477356,0.00023626,2]
[401865340,1768390250047,-428.566923,0.00023626,2]
[401865343,1768390250060,-151.0,0.00023626,2]
[401865344,1768390250069,-151.0,0.00023626,2]
[401865346,1768390250078,-666.883218,0.00023626,2]
[401865348,1768390250087,-666.883218,0.00023626,2]
[401865350,1768390250095,-151.0,0.00023626,2]
[401865352,1768390250105,-666.883218,0.00023626,2]
[401865354,1768390250113,-666.883218,0.00023626,2]
[401865356,1768390250122,-894.119727,0.00023626,2]
[401865358,1768390250131,-894.119727,0.00023626,2]
[401865360,1768390250140,-894.119727,0.00023626,2]
[401865362,1768390250149,-894.119727,0.00023626,2]
[401865364,1768390250158,-168.0,0.00023669,2]
[401865366,1768390250167,-1000.0,0.00023754,2]
[401865368,1768390250176,-1700.0,0.00023755,2]
[401865370,1768390250185,-1000.0,0.00023758,2]
[401865372,1768390250194,-168.0,0.0002379,2]
[401865374,1768390250203,-800.0,0.00023803,2]
[401865376,1768390250212,-1000.0,0.00023809,2]
[401865378,1768390250220,-168.0,0.00023824,2]
[401865380,1768390250230,-1000.0,0.00023841,2]
[401865382,1768390250238,-500.0,0.00023858,2]
[401865384,1768390250247,-1700.0,0.00023873,2]
[401865386,1768390250257,-1488.80260042,0.00023906,2]
[401865388,1768390250266,-1700.0,0.00023908,2]
[401865390,1768390250276,-209.40437684,0.00023946,2]
[401865392,1768390250285,-2773.56790519,0.00023946,2]
[401865394,1768390250295,-574.12855637,0.00023946,2]
[401865396,1768390250304,-373.98078822,0.00023946,2]
[401865398,1768390250313,-168.0,0.00023955,2]
[401865400,1768390250322,-1077.0,0.00023969,2]
[401865402,1768390250331,-1000.0,0.00023994,2]
[401865404,1768390250341,-1041.66666667,0.00024,7]
[401865405,1768390250350,-28967.02373672,0.00024,2]
[401865407,1768390250360,-1931.32974169,0.00024,60]
[401865409,1768390250369,-1736.447596,0.00024,2]
[401865411,1768390250378,-465.90719096,0.00024,2]
[401865413,1768390250387,-151.0,0.00024,2]
[401865415,1768390250396,-151.0,0.00024,2]
[401865417,1768390250405,-151.0,0.00024,2]
[401865419,1768390250415,-151.0,0.00024,2]
[401865421,1768390250424,-225.938304,0.00024,2]
[401865423,1768390250436,-151.0,0.00024,2]
[401865425,1768390250445,-151.0,0.00024,2]
[401865426,1768390250454,-151.0,0.00024,2]
[401865428,1768390250464,-151.0,0.00024,2]
[401865430,1768390250474,-1838.09205,0.00024,2]
[401865432,1768390250482,-1838.09205,0.00024,2]
[401865434,1768390250491,-257.762103,0.00024,2]
[401865435,1768390250501,-1838.09205,0.00024,2]
[401865438,1768390250510,-1838.09205,0.00024,2]
[401865439,1768390250520,-151.0,0.00024,2]
[401865441,1768390250529,-151.0,0.00024,2]
[401865443,1768390250539,-285.638493,0.00024,2]
[401865445,1768390250548,-671.695781,0.00024,2]
[401865447,1768390250557,-671.695781,0.00024,2]
[401865449,1768390250566,-671.695781,0.00024,2]
[401865451,1768390250575,-671.695781,0.00024,2]
[401865453,1768390250584,-500.0,0.00024032,2]
[401865455,1768390250593,-1000.0,0.00024044,2]
[401865456,1768390250602,-1000.0,0.00024082,10]
[401865458,1768390250611,-1000.0,0.00024082,10]
[401865460,1768390250620,-1000.0,0.00024082,10]
[401865462,1768390250629,-431.74536,0.00024082,2]
[401865464,1768390250639,-431.74536,0.00024082,2]
[401865466,1768390250648,-151.0,0.00024082,2]
[401865468,1768390250656,-431.74536,0.00024082,2]
[401865470,1768390250665,-431.74536,0.00024082,2]
[401865471,1768390250675,-151.0,0.00024082,2]
[401865473,1768390250684,-3688.352014,0.00024082,2]
[401865475,1768390250693,-3688.352014,0.00024082,2]
[401865477,1768390250703,-151.0,0.00024082,2]
[401865479,1768390250713,-3688.352014,0.00024082,2]
[401865481,1768390250726,-3688.352014,0.00024082,2]
[401865483,1768390250735,-151.0,0.00024082,2]
[401865485,1768390250744,-261.329291,0.00024082,2]
[401865487,1768390250753,-261.329291,0.00024082,2]
[401865489,1768390250763,-261.329291,0.00024082,2]
[401865491,1768390250772,-261.329291,0.00024082,2]
[401865493,1768390250781,-153.839404,0.00024082,2]
[401865495,1768390250790,-151.3487,0.00024082,2]
[401865496,1768390250799,-151.0,0.00024082,2]
[401865498,1768390250808,-151.3487,0.00024082,2]
[401865500,1768390250817,-151.3487,0.00024082,2]
[401865502,1768390250826,-151.3487,0.00024082,2]
[401865504,1768390250835,-151.0,0.00024082,2]
[401865506,1768390250844,-151.0,0.00024082,2]
[401865508,1768390250853,-800.0,0.00024096,2]
[401865510,1768390250862,-2222.24,0.000241,7]
[401865511,1768390250872,-750.0,0.0002411,2]
[401865513,1768390250882,-1601.4141805,0.0002411,2]
[401865515,1768390250891,-1050.0,0.0002411,2]
[401865517,1768390250900,-168.0,0.00024111,2]
[401865519,1768390250909,-511930.29645519,0.00024142,2]
[401865521,1768390250918,-151.0,0.00024142,2]
[401865523,1768390250927,-151.0,0.00024142,2]
[401865525,1768390250936,-255.526264,0.00024142,2]
[401865527,1768390250945,-279.449263,0.00024142,2]
[401865529,1768390250954,-151.0,0.00024142,2]
[401865531,1768390250963,-791.34915639,0.00024145,2]
[401865533,1768390250972,-800.0,0.00024192,2]
[401865535,1768390250982,-50340.12423014,0.000242,2]
[401865537,1768390250991,-2000.0,0.00024219,7]
[401865539,1768390250999,-1000.0,0.00024247,2]
[401865540,1768390251009,-800.0,0.00024247,2]
[401865542,1768390251018,-22470.88731642,0.00024256,2]
[401865544,1768390251027,-901.46550708,0.00024286,2]
[401865546,1768390251037,-167.77,0.000243,7]
[401865548,1768390251045,-168.0,0.00024309,2]
[401865550,1768390251054,-1000.0,0.00024315,2]
[401865552,1768390251063,-168.0,0.00024321,2]
[401865554,1768390251073,-800.0,0.00024328,2]
[401865555,1768390251082,-800.0,0.00024342,2]
[401865557,1768390251091,-500.0,0.00024387,2]
[401865559,1768390251100,-1000.0,0.00024392,2]
[401865561,1768390251109,-168.0,0.00024397,2]
[401865563,1768390251119,-316.42,0.000244,7]
[401865565,1768390251128,-316.46,0.000244,7]
[401865567,1768390251138,-5432.92,0.000244,14]
[401865569,1768390251147,-40340.44,0.000244,2]
[401865571,1768390251156,-1041.66666667,0.000244,7]
[401865573,1768390251168,-168.0,0.00024428,2]
[401865575,1768390251178,-168.0,0.00024462,2]
[401865577,1768390251188,-1700.0,0.0002448,2]
[401865579,1768390251197,-217.15233878,0.00024494,2]
[401865581,1768390251206,-2876.18991768,0.00024494,2]
[401865582,1768390251216,-595.37131296,0.00024494,2]
[401865584,1768390251225,-258.85518867,0.00024494,2]
[401865586,1768390251234,-12705.37423421,0.00024498,2]
[401865588,1768390251243,-1126.0,0.000245,5]
[401865590,1768390251253,-1700.0,0.00024531,2]
[401865592,1768390251262,-800.0,0.0002458,2]
[401865594,1768390251272,-168.0,0.0002458,2]
[401865596,1768390251280,-1145.51309932,0.00024607,19]
[401865598,1768390251289,-168.0,0.00024608,2]
[401865600,1768390251299,-514.22907277,0.0002465,2]
[401865601,1768390251308,-156856.39382059,0.0002465,2]
[401865603,1768390251318,-155.0,0.00024655,2]
[401865605,1768390251327,-900.0,0.00024658,2]
[401865607,1768390251337,-1150.0,0.00024658,2]
[401865609,1768390251347,-380.0,0.00024658,2]
[401865611,1768390251356,-1700.0,0.0002466,2]
[401865613,1768390251365,-18508.42,0.000247,3]
[401865615,1768390251375,-500.0,0.00024734,2]
[401865617,1768390251385,-1700.0,0.00024738,2]
[401865619,1768390251395,-800.0,0.00024774,2]
[401865621,1768390251404,-16836.12060946,0.00024774,2]
[401865623,1768390251413,-522.88356834,0.00024825,2]
[401865625,1768390251422,-330.0,0.00024841,2]
[401865627,1768390251435,-168.0,0.00024855,2]
[401865629,1768390251444,-1700.0,0.00024868,2]
[401865631,1768390251453,-293.85068442,0.00024876,2]
[401865633,1768390251463,-168.0,0.00024877,2]
[401865634,1768390251476,-1000.0,0.0002488,2]
[401865636,1768390251485,-1000.0,0.00024892,2]
[401865638,1768390251494,-151.0,0.000249,7]
[401865640,1768390251504,-151.0,0.000249,7]
[401865642,1768390251513,-250.203788,0.000249,7]
[401865644,1768390251523,-250.203788,0.000249,7]
[401865646,1768390251532,-250.203788,0.000249,7]
[401865648,1768390251541,-250.203788,0.000249,7]
[401865650,1768390251551,-151.0,0.000249,7]
[401865652,1768390251561,-151.0,0.000249,7]
[401865654,1768390251571,-163.463878,0.000249,7]
[401865656,1768390251581,-1844.136293,0.000249,7]
[401865658,1768390251591,-151.0,0.000249,7]
[401865660,1768390251601,-1844.136293,0.000249,7]
[401865662,1768390251611,-1844.136293,0.000249,7]
[401865664,1768390251621,-1844.136293,0.000249,7]
[401865666,1768390251631,-151.0,0.000249,7]
[401865668,1768390251640,-151.0,0.000249,7]
[401865670,1768390251649,-151.0,0.000249,7]
[401865672,1768390251659,-151.0,0.000249,7]
[401865674,1768390251669,-424.867584,0.000249,7]
[401865675,1768390251679,-633.419635,0.000249,7]
[401865677,1768390251689,-151.0,0.000249,7]
[401865679,1768390251699,-633.419635,0.000249,7]
[401865681,1768390251709,-424.867584,0.000249,7]
[401865683,1768390251717,-151.0,0.000249,7]
[401865685,1768390251727,-633.419635,0.000249,7]
[401865687,1768390251738,-424.867584,0.000249,7]
[401865689,1768390251748,-633.419635,0.000249,7]
[401865691,1768390251757,-424.867584,0.000249,7]
[401865693,1768390251767,-151.0,0.000249,7]
[401865695,1768390251777,-151.0,0.000249,7]
[401865697,1768390251786,-151.0,0.000249,7]
[401865699,1768390251795,-227.437478,0.000249,7]
[401865701,1768390251805,-151.0,0.000249,7]
[401865703,1768390251814,-151.0,0.000249,7]
[401865705,1768390251823,-151.0,0.000249,7]
[401865707,1768390251833,-151.0,0.000249,7]
[401865709,1768390251842,-151.0,0.000249,7]
[401865711,1768390251852,-169.444097,0.000249,7]
[401865713,1768390251861,-151.0,0.000249,7]
[401865715,1768390251871,-151.0,0.000249,7]
[401865717,1768390251880,-879.438014,0.000249,7]
[401865719,1768390251890,-879.438014,0.000249,7]
[401865721,1768390251898,-879.438014,0.000249,7]
[401865723,1768390251908,-879.438014,0.000249,7]
[401865725,1768390251917,-653058.728757,0.000249,2]
[401865727,1768390251927,-151.0,0.000249,7]
[401865729,1768390251936,-151.0,0.000249,7]
[401865731,1768390251946,-151.0,0.000249,7]
[401865732,1768390251955,-151.0,0.000249,7]
[401865734,1768390251964,-151.0,0.000249,7]
[401865736,1768390251974,-151.0,0.000249,7]
[401865738,1768390251985,-151.0,0.000249,7]
[401865740,1768390251994,-151.0,0.000249,7]
[401865742,1768390252003,-180.185459,0.000249,7]
[401865744,1768390252013,-244.488138,0.000249,7]
[401865746,1768390252022,-244.488138,0.000249,7]
[401865748,1768390252032,-244.488138,0.000249,7]
[401865750,1768390252041,-244.488138,0.000249,7]
[401865752,1768390252050,-174.038823,0.000249,7]
[401865754,1768390252060,-174.038823,0.000249,7]
[401865756,1768390252070,-174.038823,0.000249,7]
[401865758,1768390252079,-174.038823,0.000249,7]
[401865760,1768390252092,-151.0,0.000249,7]
[401865762,1768390252101,-406.316369,0.000249,7]
[401865764,1768390252110,-406.316369,0.000249,7]
[401865766,1768390252120,-237.361203,0.000249,7]
[401865768,1768390252130,-406.316369,0.000249,7]
[401865770,1768390252140,-237.361203,0.000249,7]
[401865772,1768390252149,-406.316369,0.000249,7]
[401865774,1768390252159,-237.361203,0.000249,7]
[401865775,1768390252169,-237.361203,0.000249,7]
[401865777,1768390252179,-151.0,0.000249,7]
[401865779,1768390252190,-191.99,0.000249,7]
[401865781,1768390252199,-155.398666,0.000249,7]
[401865783,1768390252209,-151.0,0.000249,2]
[401865785,1768390252218,-151.0,0.000249,7]
[401865787,1768390252228,-151.0,0.000249,7]
[401865789,1768390252237,-151.0,0.000249,7]
[401865791,1768390252247,-151.0,0.000249,7]
[401865793,1768390252256,-1838.09205,0.000249,7]
[401865795,1768390252265,-1838.09205,0.000249,7]
[401865797,1768390252275,-1838.09205,0.000249,7]
[401865799,1768390252285,-1838.09205,0.000249,7]
[401865801,1768390252294,-151.0,0.000249,7]
[401865803,1768390252304,-671.695781,0.000249,7]
[401865805,1768390252314,-671.695781,0.000249,7]
[401865807,1768390252325,-671.695781,0.000249,7]
[401865809,1768390252334,-671.695781,0.000249,7]
[401865811,1768390252343,-151.0,0.000249,7]
[401865812,1768390252353,-151.0,0.000249,7]
[401865814,1768390252362,-1082.98429516,0.00024916,2]
[401865816,1768390252374,-168.0,0.00024931,2]
[401865818,1768390252383,-168.0,0.00024935,2]
[401865820,1768390252393,-531.45928758,0.00025,2]
[401865822,1768390252403,-10056.03999481,0.00025,15]
[401865824,1768390252414,-1086.00529944,0.00025,2]
[401865826,1768390252424,-2675.92587353,0.00025,2]
[401865828,1768390252437,-90000.0,0.00025,2]
[401865830,1768390252446,-10364.0,0.00025,2]
[401865832,1768390252456,-500.0,0.00025,2]
[401865834,1768390252466,-2611.93964778,0.00025,2]
[401865836,1768390252476,-760.01897251,0.00025,2]
[401865838,1768390252485,-160.03118063,0.00025,2]
[401865840,1768390252495,-1024.9030344,0.00025,2]
[401865842,1768390252504,-201.26879672,0.00025014,14]
[401865844,1768390252513,-225.18697532,0.00025042,2]
[401865846,1768390252523,-2982.60894464,0.00025042,2]
[401865848,1768390252532,-617.40005154,0.00025042,2]
[401865850,1768390252542,-730.42,0.000251,7]
[401865852,1768390252551,-500.0,0.000251,7]
[401865854,1768390252560,-1700.0,0.00025121,7]
[401865856,1768390252570,-1000.0,0.00025122,7]
[401865858,1768390252580,-800.0,0.00025123,7]
[401865859,1768390252590,-500.0,0.00025135,7]
[401865861,1768390252600,-1000.0,0.0002515,7]
[401865863,1768390252610,-1000.0,0.00025157,7]
[401865865,1768390252621,-580.66727248,0.000252,5]
[401865867,1768390252631,-250.0,0.00025205,2]
[401865869,1768390252641,-1186.74681137,0.00025205,2]
[401865871,1768390252651,-1250.0,0.00025205,2]
[401865873,1768390252660,-1700.0,0.00025207,7]
[401865875,1768390252669,-800.0,0.00025223,7]
[401865877,1768390252679,-168.0,0.00025243,2]
[401865879,1768390252688,-800.0,0.00025247,7]
[401865881,1768390252697,-500.0,0.0002526,7]
[401865882,1768390252707,-1700.0,0.00025263,7]
[401865883,1768390252716,-1000.0,0.00025269,7]
[401865884,1768390252726,-180.0,0.000253,2]
[401865885,1768390252736,-712.833248,0.00025342,2]
[401865886,1768390252745,-168.0,0.0002535,2]
[401865887,1768390252754,-1077.0,0.0002539,2]
[401865888,1768390252764,-633.2980032,0.000254,30]
[401865889,1768390252773,-800.0,0.00025432,7]
[401865890,1768390252782,-1000.0,0.00025433,7]
[401865891,1768390252791,-1700.0,0.00025435,7]
[401865892,1768390252802,-1700.0,0.0002544,7]
[401865893,1768390252812,-190.0,0.00025443,7]
[401865894,1768390252822,-900.0,0.00025469,3]
[401865895,1768390252831,-2222.24,0.000255,7]
[401865896,1768390252840,-1000.0,0.000255,2]
[401865897,1768390252850,-1000.0,0.00025509,7]
[401865898,1768390252859,-800.0,0.00025514,7]
[401865899,1768390252869,-500.0,0.00025529,7]
[401865900,1768390252878,-2000.0,0.00025534,7]
[401865901,1768390252888,-155.0,0.00025562,14]
[401865902,1768390252898,-800.0,0.00025566,7]
[401865903,1768390252909,-1000.0,0.00025576,7]
[401865904,1768390252918,-233.51889341,0.0002559,2]
[401865905,1768390252928,-3092.96547559,0.0002559,2]
[401865906,1768390252938,-640.24385345,0.0002559,2]
[401865907,1768390252947,-1000.0,0.00025599,7]
[401865908,1768390252956,-167.77,0.000256,7]
[401865909,1768390252966,-1000.0,0.00025603,7]
[401865910,1768390252975,-200.0,0.00025621,30]
[401865911,1768390252984,-200.0,0.00025621,30]
[401865913,1768390252993,-200.0,0.00025621,30]
[401865915,1768390253003,-1145.51309932,0.00025635,21]
[401865916,1768390253012,-3348.0,0.00025693,2]
[401865918,1768390253022,-9254.21,0.000257,3]
[401865920,1768390253031,-5888.0,0.00025722,7]
[401865922,1768390253041,-350.0,0.00025753,2]
[401865924,1768390253051,-1350.0,0.00025753,2]
[401865926,1768390253060,-800.0,0.00025769,7]
[401865928,1768390253071,-2000.07602471,0.00025769,2]
[401865930,1768390253080,-316.42,0.000258,7]
[401865932,1768390253089,-316.46,0.000258,7]
[401865934,1768390253099,-5432.92,0.000258,14]
[401865936,1768390253108,-40340.44,0.000258,2]
[401865938,1768390253118,-285.5227043,0.00025847,120]
[401865940,1768390253128,-800.0,0.00025865,7]
[401865942,1768390253138,-800.0,0.00025882,7]
[401865945,1768390253149,-1700.0,0.00025886,7]
[401865947,1768390253159,-1607.37979868,0.00025906,2]
[401865949,1768390253169,-1700.0,0.00025908,7]
[401865951,1768390253179,-1000.0,0.00025928,7]
[401865953,1768390253189,-1000.0,0.00025931,7]
[401865955,1768390253198,-1000.0,0.00025962,7]
[401865957,1768390253208,-800.0,0.00025991,7]
[401865959,1768390253218,-151.0,0.00026,7]
[401865961,1768390253227,-216.477356,0.00026,7]
[401865963,1768390253237,-151.0,0.00026,7]
[401865965,1768390253246,-151.0,0.00026,7]
[401865967,1768390253256,-428.566923,0.00026,7]
[401865969,1768390253268,-151.0,0.00026,7]